fUST/lending_fUST_20251229
["ID","MTS","AMOUNT","RATE_DAILY","PERIOD"]
[399977354,1766964631815,-310.98346172,0.00013699,2]
[399977357,1766964631831,-100.34965528,0.00013699,2]
[399977358,1766964631840,-1861.25375252,0.00013699,2]
[399977359,1766964631851,-2602.05,0.00013699,2]
[399977360,1766964631863,-703.71822053,0.00013699,2]
[399977366,1766964637924,-208.3975783,0.00013699,2]
[399977721,1766964645926,-1413.2876182,0.00013699,2]
[399977722,1766964646093,-10560.99319165,0.00013699,2]
[399977723,1766964646103,-500.0,0.00013699,2]
[399977724,1766964646112,-1000.0,0.00014247,2]
[399977726,1766964646122,-1159.30684058,0.00014795,2]
[399977728,1766964646131,-213.19899711,0.00014998,2]
[399977730,1766964646140,-346.64994949,0.00014998,2]
[399977731,1766964646148,-500.0,0.00014998,2]
[399977732,1766964646158,-500.0,0.00014998,2]
[399977733,1766964646167,-500.0,0.00014998,2]
[399977734,1766964646176,-500.0,0.00014998,2]
[399977735,1766964646185,-506.59426905,0.00014998,2]
[399977736,1766964646194,-500.0,0.00014998,2]
[399977737,1766964646203,-778.48369527,0.00014999,2]
[399977738,1766964646213,-6844.53739011,0.00015,2]
[399977739,1766964646222,-5953.05774158,0.00015,2]
[399977805,1766965831908,-571.8196574,0.00013629,2]
[399977807,1766965831917,-150.0,0.0001363,2]
[399977809,1766965831927,-500.0,0.00013699,2]
[399977811,1766965831936,-3191.931941,0.0001372,2]
[399977813,1766965831945,-1000.0,0.00013867,2]
[399977815,1766965831955,-1200.0,0.00014246,2]
[399977817,1766965831965,-1000.0,0.00014247,2]
[399977819,1766965831974,-300.0,0.0001457,2]
[399977820,1766965831983,-298.0,0.0001457,2]
[399977821,1766965831991,-881.07494303,0.00014571,2]
[399977822,1766965832024,-1597.14093191,0.00014571,2]
[399977823,1766965832033,-334.121,0.00014793,2]
[399977824,1766965832044,-251.04726944,0.00014794,2]
[399977825,1766965832053,-221.56759035,0.00014794,2]
[399977826,1766965832062,-478.52673005,0.00014794,2]
[399977827,1766965832071,-171.42999674,0.00014794,2]
[399977828,1766965832081,-500.0,0.00014794,2]
[399977829,1766965832092,-500.0,0.00014795,2]
[399977830,1766965832102,-4002.7122613,0.000149,2]
[399977831,1766965832111,-302.55181658,0.00014999,2]
[399977832,1766965832120,-500.0,0.00014999,2]
[399977833,1766965832130,-500.0,0.00014999,2]
[399977834,1766965832140,-500.0,0.00014999,2]
[399977835,1766965832150,-500.0,0.00014999,2]
[399977836,1766965832159,-258.04770901,0.00014999,2]
[399977837,1766965832169,-500.0,0.00014999,2]
[399977838,1766965832178,-500.0,0.00014999,2]
[399977839,1766965832187,-500.0,0.00014999,2]
[399977840,1766965832196,-500.0,0.00014999,2]
[399977841,1766965832206,-500.0,0.00014999,2]
[399977842,1766965832219,-500.0,0.00014999,2]
[399977843,1766965832228,-500.0,0.00014999,2]
[399977844,1766965832237,-500.0,0.00014999,2]
[399977845,1766965832246,-500.0,0.00014999,2]
[399977846,1766965832255,-500.0,0.00014999,2]
[399977847,1766965832265,-580.63339631,0.00014999,2]
[399977848,1766965832274,-500.0,0.00014999,2]
[399977849,1766965832283,-500.0,0.00014999,2]
[399977850,1766965832294,-13817.39114408,0.00015,2]
[399977851,1766965832308,-551.15446361,0.00015,2]
[399977880,1766965838079,-2714.43362457,0.00015,2]
[399977881,1766965838091,-832.12920319,0.00015,2]
[399977882,1766965838102,-2694.248208,0.00015,2]
[399977883,1766965838119,-291.300155,0.00015,2]
[399977884,1766965838131,-612.368161,0.00015,2]
[399977885,1766965838140,-150.71289542,0.00015,2]
[399977886,1766965838149,-65.95624755,0.0001563,2]
[399978056,1766966110492,205.01282759,0.00025614,120]
[399978096,1766967032045,-150.0,0.00013707,2]
[399978097,1766967032055,-202.0,0.00014826,2]
[399978098,1766967032095,-8.0251521,0.00014826,2]
[399978099,1766967032104,-2478.21587494,0.00015361,2]
[399978100,1766967032113,-177.0,0.00015707,2]
[399978101,1766967032122,-244.57416732,0.00015947,2]
[399978102,1766967032132,-204.0,0.00017707,2]
[399978103,1766967032141,-154.0,0.00018649,2]
[399978105,1766967032150,-637.0,0.00018649,2]
[399978107,1766967032160,-500.0,0.0001865,2]
[399978109,1766967032168,-500.0,0.0001865,2]
[399978110,1766967032177,-485.92827553,0.0001865,2]
[399978112,1766967032187,-156.0,0.0001865,2]
[399978114,1766967032196,-300.0,0.0001865,2]
[399978116,1766967032206,-3536.3915299,0.00018651,2]
[399978117,1766967032216,-260.0,0.00018959,3]
[399978119,1766967032225,-164.239489,0.00018981,2]
[399978121,1766967032234,-231.0,0.00019707,2]
[399978122,1766967032244,-999.0,0.00019839,2]
[399978123,1766967032253,-917.46420326,0.0002,2]
[399978124,1766967032263,-2155.0,0.00020164,2]
[399978125,1766967032272,-1363.0,0.00020164,2]
[399978126,1766967032282,-627.0,0.00020164,2]
[399978127,1766967032291,-416.0,0.00020164,2]
[399978128,1766967032300,-411.333117,0.00020187,2]
[399978129,1766967032309,-420.0,0.00020336,2]
[399978130,1766967032320,-244.57416732,0.00020399,2]
[399978131,1766967032329,-1041.66666667,0.0002048,2]
[399978132,1766967032339,-159.0,0.00020603,3]
[399978133,1766967032349,-600.0,0.00021015,2]
[399978134,1766967032359,-170.58224566,0.00021087,2]
[399978135,1766967032369,-394.06,0.00021442,2]
[399978136,1766967032379,-3502.37322869,0.00021445,2]
[399978137,1766967032387,-500.0,0.00021499,2]
[399978138,1766967032397,-161.41247705,0.000215,2]
[399978139,1766967032407,-3762.99357698,0.000215,2]
[399978140,1766967032416,-278.9,0.00021541,10]
[399978141,1766967032425,-211.7862716,0.00021544,2]
[399978142,1766967032434,-500.0,0.00021544,2]
[399978143,1766967032444,-500.0,0.00021544,2]
[399978144,1766967032453,-500.0,0.00021544,2]
[399978145,1766967032462,-500.0,0.00021544,2]
[399978146,1766967032471,-280.36601063,0.00021544,2]
[399978147,1766967032481,-500.0,0.00021544,2]
[399978148,1766967032490,-500.0,0.00021544,2]
[399978149,1766967032658,-500.0,0.00021544,2]
[399978150,1766967032676,-500.0,0.00021544,2]
[399978151,1766967032687,-500.0,0.00021544,2]
[399978152,1766967032698,-500.0,0.00021544,2]
[399978153,1766967032708,-500.0,0.00021544,2]
[399978154,1766967032721,-500.0,0.00021544,2]
[399978155,1766967032730,-246.25620744,0.00021544,2]
[399978156,1766967032739,-500.0,0.00021544,2]
[399978157,1766967032749,-500.0,0.0002155,2]
[399978158,1766967032760,-254.93660611,0.0002155,2]
[399978159,1766967032769,-36.28601646,0.00021551,2]
[399978160,1766967032781,-7021.43201924,0.00021551,2]
[399978173,1766967038230,-232.41,0.00021541,10]
[399978174,1766967038240,-47721.18539226,0.00021551,2]
[399978175,1766967038295,-12942.11470087,0.00021551,2]
[399978176,1766967038308,-585.67313692,0.00021551,2]
[399978177,1766967038320,-934.49182444,0.00021551,2]
[399978178,1766967038331,-2892.56291802,0.00021551,2]
[399978199,1766967040609,-722.41,0.00020479,2]
[399978200,1766967040618,-722.41,0.0002155,2]
[399978201,1766967040627,-722.41,0.0002155,2]
[399978202,1766967040636,-722.41,0.0002155,2]
[399978203,1766967040645,-722.41,0.0002155,2]
[399978204,1766967040654,-12.25585884,0.00021551,2]
[399978205,1766967040665,-569.74631589,0.00021551,2]
[399978221,1766967045515,-500.0,0.00021499,2]
[399978222,1766967045525,-500.0,0.00021499,2]
[399978223,1766967045535,-500.0,0.00021499,2]
[399978224,1766967045546,-500.0,0.00021499,2]
[399978225,1766967045556,-722.41,0.0002155,2]
[399978226,1766967045565,-722.41,0.0002155,2]
[399978227,1766967045577,-722.41,0.0002155,2]
[399978228,1766967045588,-722.41,0.0002155,2]
[399978229,1766967045598,-722.41,0.0002155,2]
[399978230,1766967045607,-722.41,0.0002155,2]
[399978231,1766967045617,-722.41,0.0002155,2]
[399978232,1766967045626,-722.41,0.0002155,2]
[399978233,1766967045637,-722.41,0.0002155,2]
[399978234,1766967045647,-722.41,0.0002155,2]
[399978235,1766967045656,-722.41,0.0002155,2]
[399978237,1766967045666,-722.41,0.0002155,2]
[399978238,1766967045676,-722.41,0.0002155,2]
[399978239,1766967045686,-722.41,0.0002155,2]
[399978240,1766967045695,-722.41,0.0002155,2]
[399978241,1766967045706,-722.41,0.0002155,2]
[399978242,1766967045716,-169.17322972,0.0002155,2]
[399978243,1766967046427,-4640.96971762,0.00021335,2]
[399978244,1766967046438,-553.23677028,0.0002155,2]
[399978245,1766967046449,-722.41,0.0002155,2]
[399978246,1766967046458,-722.5993745,0.0002155,2]
[399978247,1766967046468,-48919.55473363,0.00021551,2]
[399978457,1766967910574,253.41317466,0.00025478,120]
[399978476,1766968080850,2985.53,0.00013172,2]
[399978509,1766968232264,-150.0,0.00013429,2]
[399978512,1766968232274,-424.702834,0.00013699,2]
[399978513,1766968232285,-848.94894704,0.00015012,2]
[399978515,1766968232297,-71.78779106,0.00015012,2]
[399978517,1766968232307,-343.89054953,0.00015137,2]
[399978519,1766968232317,-148.24351294,0.00015346,2]
[399978521,1766968232333,-2328.51114331,0.00015346,2]
[399978523,1766968232343,-177.0,0.00015429,2]
[399978525,1766968232353,-2476.75465625,0.00015741,2]
[399978527,1766968232362,-1200.0,0.00015921,2]
[399978528,1766968232372,-300.0,0.00015921,2]
[399978530,1766968232381,-1460.28470803,0.00015922,2]
[399978532,1766968232402,-785.29022319,0.00015922,2]
[399978547,1766968238500,-884.42506878,0.00015922,2]
[399978548,1766968238510,-406.33772056,0.00015988,2]
[399978549,1766968238519,-1186.98473289,0.00015988,2]
[399978550,1766968238531,-338.84055212,0.00015988,2]
[399978551,1766968238555,-950.92937124,0.00015988,2]
[399978552,1766968238565,-794.757951,0.00016098,2]
[399978553,1766968238575,-2476.75465625,0.00016322,2]
[399978554,1766968238584,-24024.9481625,0.00016374,2]
[399978555,1766968238595,-40161.96984318,0.00016374,2]
[399978556,1766968238606,-4819.5,0.00016374,2]
[399978557,1766968238618,-16844.9999999,0.00016374,2]
[399978558,1766968238629,-2765.4110667,0.00016374,2]
[399978559,1766968238643,-822.42279838,0.00016374,2]
[399978560,1766968238655,-1107.56081372,0.00016374,2]
[399978561,1766968238666,-1049.11911392,0.00016374,2]
[399978562,1766968238677,-890.15205145,0.00016374,2]
[399978563,1766968238689,-281.00478041,0.00016374,2]
[399978564,1766968238700,-333.71912776,0.00016374,2]
[399978572,1766968240742,-1023.59729684,0.00016374,2]
[399978573,1766968240754,-1499.98806,0.00016374,2]
[399978574,1766968240765,-303.59,0.00016374,2]
[399978654,1766968245746,-500.0,0.00016373,2]
[399978655,1766968245756,-500.0,0.00016373,2]
[399978656,1766968245766,-500.0,0.00016373,2]
[399978657,1766968245775,-500.0,0.00016373,2]
[399978658,1766968245785,-500.0,0.00016373,2]
[399978659,1766968245794,-572.37934521,0.00016373,2]
[399978660,1766968245804,-500.0,0.00016373,2]
[399978661,1766968245813,-6440.7459119,0.00016374,2]
[399978663,1766968246464,-35654.80395575,0.00016374,2]
[399978664,1766968246571,-851.78723781,0.00016374,2]
[399978665,1766968246683,-1434.71368843,0.00016374,2]
[399978666,1766968246695,-305.00000001,0.00016374,2]
[399978667,1766968247103,-436.95228894,0.00016374,2]
[399978668,1766968247114,-886.53,0.00016374,2]
[399978669,1766968247125,-33401.85134745,0.00016374,2]
[399978670,1766968247139,-26359.08661418,0.00016374,2]
[399978671,1766968247153,-2099.0,0.00016374,2]
[399978734,1766968483859,300.0,0.00013172,2]
[399978740,1766968712053,201.1,0.00028767,120]
[399978742,1766968725736,205.47163138,0.00028767,120]
[399978744,1766968742785,205.47163138,0.00028767,120]
[399978748,1766968761142,205.47163138,0.00028767,120]
[399978758,1766968820597,212.81135506,0.00026415,120]
[399978759,1766968833262,205.47163138,0.00028767,120]
[399978796,1766968984896,1000.0,0.00028767,120]
[399978817,1766969104035,164.0,0.000287,120]
[399978818,1766969105252,164.0,0.000287,120]
[399978820,1766969118862,164.0,0.000287,120]
[399978821,1766969123505,164.0,0.000287,120]
[399978822,1766969132022,164.0,0.000287,120]
[399978823,1766969133189,164.0,0.000287,120]
[399978940,1766969432368,-508.47394635,0.00013632,2]
[399978941,1766969432381,-105.52605365,0.00013632,2]
[399978942,1766969432391,-150.0,0.00014196,2]
[399978943,1766969432403,-206.57119575,0.00015566,2]
[399978944,1766969432413,-156.36396904,0.00015566,2]
[399978946,1766969432422,-238.72718202,0.00015763,2]
[399978948,1766969432433,-242.18058788,0.00015763,2]
[399978950,1766969432442,-151.72924649,0.00015841,2]
[399978951,1766969432451,-2478.21587494,0.00016013,2]
[399978953,1766969432461,-177.0,0.00016196,2]
[399978954,1766969432470,-3064.57657506,0.000162,2]
[399978955,1766969432480,-300.0,0.00016271,2]
[399978957,1766969432489,-500.0,0.00016272,2]
[399978958,1766969432499,-500.0,0.00016272,2]
[399978959,1766969432508,-518.89116769,0.00016272,2]
[399978961,1766969432518,-500.0,0.00016272,2]
[399978962,1766969432529,-500.0,0.00016272,2]
[399978963,1766969432538,-500.0,0.00016272,2]
[399978964,1766969432549,-500.0,0.00016272,2]
[399978965,1766969432559,-500.0,0.00016272,2]
[399978966,1766969432569,-403.58404517,0.00016272,2]
[399978967,1766969432581,-500.0,0.00016272,2]
[399978968,1766969432591,-500.0,0.00016272,2]
[399978969,1766969432602,-500.0,0.00016272,2]
[399978970,1766969432612,-500.0,0.00016272,2]
[399978971,1766969432623,-500.0,0.00016272,2]
[399978972,1766969432633,-500.0,0.00016272,2]
[399978973,1766969432643,-177.0,0.00016272,2]
[399978974,1766969432654,-1200.0,0.00016272,2]
[399978975,1766969432665,-8129.74953492,0.00016272,2]
[399978976,1766969432675,-31323.24518877,0.00016274,2]
[399979006,1766969438565,-500.0,0.00016271,2]
[399979007,1766969438575,-234.72091311,0.00016271,2]
[399979008,1766969438585,-500.0,0.00016271,2]
[399979009,1766969438594,-427.44352584,0.00016271,2]
[399979010,1766969438605,-72.55647416,0.00016271,2]
[399979011,1766969438615,-500.0,0.00016271,2]
[399979013,1766969438624,-373.53479812,0.00016271,2]
[399979014,1766969438636,-408.81007649,0.00016271,2]
[399979015,1766969438646,-500.0,0.00016272,2]
[399979016,1766969438655,-500.0,0.00016272,2]
[399979017,1766969438667,-500.0,0.00016272,2]
[399979018,1766969438676,-500.0,0.00016272,2]
[399979019,1766969438686,-237.05916847,0.00016272,2]
[399979020,1766969438695,-1022.97854906,0.00016274,2]
[399979027,1766969440715,-13254.6,0.00016274,2]
[399979028,1766969440730,-999.3076169,0.00016274,2]
[399979057,1766969446610,-2551.01398342,0.00016274,2]
[399979119,1766969838037,500.0,0.00028767,120]
[399979125,1766969847763,500.0,0.00028767,120]
[399979126,1766969857786,500.0,0.00028767,120]
[399979127,1766969871702,500.0,0.00028767,120]
[399979130,1766969881917,500.0,0.00028767,120]
[399979325,1766970631603,-150.0,0.0001395,2]
[399979326,1766970631613,-190.3178773,0.00015133,2]
[399979327,1766970631622,-11.49428465,0.00015244,2]
[399979328,1766970631634,-385.88469035,0.00015244,2]
[399979329,1766970631644,-364.90583397,0.00015625,7]
[399979330,1766970631655,-295.72066314,0.00015841,2]
[399979331,1766970631665,-337.96647216,0.00015841,2]
[399979332,1766970631675,-299.99853155,0.00015841,2]
[399979333,1766970631685,-342.85546462,0.00015841,2]
[399979334,1766970631694,-315.248,0.00015848,2]
[399979335,1766970631703,-177.0,0.0001595,2]
[399979336,1766970631715,-1025.26310274,0.00016057,2]
[399979337,1766970631726,-989.41022574,0.00016057,2]
[399979350,1766970637711,-463.54254646,0.00016057,2]
[399979351,1766970637721,-1185.88452646,0.00016069,2]
[399979352,1766970637770,-296.26393716,0.00016069,2]
[399979353,1766970637781,-1199.35603961,0.00016069,2]
[399979355,1766970637791,-419.1952698,0.00016114,2]
[399979356,1766970637800,-300.0,0.00016168,2]
[399979357,1766970637810,-25848.09044353,0.00016169,2]
[399979358,1766970637822,-445.88288578,0.00016169,2]
[399979365,1766970639828,-804.7719191,0.00016169,2]
[399979366,1766970639884,-13238.25,0.00016169,2]
[399979375,1766970644163,-5396.0609,0.00016169,2]
[399979376,1766970644175,-629.45209132,0.00016169,2]
[399979377,1766970644222,-2848.78697822,0.00016169,2]
[399979378,1766970644232,-1057.0,0.00016169,2]
[399979379,1766970644242,-11385.85286386,0.00016172,2]
[399979387,1766970645766,-493.33333333,0.00016172,2]
[399979388,1766970659219,185.64,0.00028767,120]
[399979496,1766971539137,300.0,0.000284,120]
[399979508,1766971588710,748.0,0.000287,120]
[399979527,1766971814272,150.0,7.342e-05,2]
[399979592,1766971837961,-150.0,0.00013665,2]
[399979593,1766971837973,-426.703194,0.00013699,2]
[399979594,1766971837984,-1458.16371256,0.00014632,2]
[399979595,1766971837996,-1047.56884058,0.00014632,2]
[399979596,1766971838005,-166.0,0.00015,2]
[399979597,1766971838014,-98.7623377,0.00015142,2]
[399979598,1766971838139,-88.3570213,0.00015142,2]
[399979599,1766971838148,-177.0,0.00015665,2]
[399979600,1766971838158,-50.82703211,0.00015841,2]
[399979601,1766971838175,-134.75786827,0.00015841,2]
[399979602,1766971838185,-174.29906573,0.00015841,2]
[399979603,1766971838197,-159.75375496,0.00015841,2]
[399979604,1766971838207,-589.11335284,0.00015841,2]
[399979710,1766971845451,-4.75832838,0.00015841,2]
[399979711,1766971845461,-233.18653635,0.00015888,2]
[399979712,1766971845471,-150.0,0.00015888,2]
[399979713,1766971845485,-150.0,0.00015888,2]
[399979714,1766971845495,-150.0,0.00015888,2]
[399979715,1766971845505,-150.0,0.00015888,2]
[399979716,1766971845515,-1601.74242129,0.00015945,2]
[399979722,1766971846247,-876.88087323,0.00015945,2]
[399979723,1766971846256,-166.59029801,0.00016025,2]
[399979724,1766971846266,-579.0,0.00016059,2]
[399979725,1766971846276,-500.0,0.0001606,2]
[399979726,1766971846285,-288.69882876,0.0001606,2]
[399979875,1766971987856,451.78,0.00028767,120]
[399980413,1766972534904,351.2177215,0.0002876,120]
[399980457,1766973031982,-256.7609,0.00013631,2]
[399980458,1766973031991,-150.0,0.00013631,2]
[399980460,1766973032001,-150.16811567,0.00013699,2]
[399980462,1766973032010,-50.58598447,0.00014296,2]
[399980464,1766973032021,-249.41401553,0.00014296,2]
[399980467,1766973032030,-193.36154486,0.00014297,2]
[399980469,1766973032048,-268.33962027,0.00014297,2]
[399980471,1766973032057,-831.06209724,0.00014297,2]
[399980472,1766973032066,-1477.44372843,0.00014297,2]
[399980473,1766973032078,-150.2746178,0.00015028,2]
[399980474,1766973032087,-642.66505356,0.00015049,2]
[399980475,1766973032096,-1445.99637051,0.00015049,2]
[399980476,1766973032106,-1598.98943062,0.00015049,2]
[399980530,1766973038151,-160.66626339,0.00014297,2]
[399980531,1766973038161,-971.67078362,0.00015049,2]
[399980532,1766973038172,-500.0,0.00015622,2]
[399980533,1766973038181,-500.0,0.00015622,2]
[399980535,1766973038190,-157.45895339,0.00015622,2]
[399980536,1766973038200,-500.0,0.00015622,2]
[399980537,1766973038210,-220.82129021,0.00015622,2]
[399980538,1766973038219,-392.9323512,0.00015622,2]
[399980539,1766973038229,-500.0,0.00015622,2]
[399980540,1766973038239,-392.06963465,0.00015622,2]
[399980541,1766973038249,-262.65031731,0.00015625,7]
[399980542,1766973038259,-863.75997106,0.00015625,7]
[399980543,1766973038268,-177.0,0.00015631,2]
[399980544,1766973038278,-163.83240446,0.00015751,2]
[399980545,1766973038287,-2478.62329452,0.00015849,2]
[399980546,1766973038297,-741.40663819,0.00015862,2]
[399980547,1766973038306,-2716.64179287,0.00015862,2]
[399980548,1766973038316,-741.40663818,0.0001587,2]
[399980549,1766973038325,-741.40663818,0.00015878,2]
[399980550,1766973038335,-741.40663818,0.00015885,2]
[399980551,1766973038345,-409.65140454,0.00015886,2]
[399980552,1766973038354,-741.40663818,0.00015893,2]
[399980553,1766973038364,-376.1809797,0.000159,2]
[399980554,1766973038378,-376.1809797,0.000159,2]
[399980556,1766973038387,-500.0,0.00015958,2]
[399980557,1766973038397,-301.96910293,0.00015958,2]
[399980559,1766973038406,-500.0,0.00015958,2]
[399980561,1766973038418,-500.0,0.00015958,2]
[399980562,1766973038428,-500.0,0.00015958,2]
[399980563,1766973038437,-500.0,0.00015958,2]
[399980565,1766973038448,-500.0,0.00015958,2]
[399980567,1766973038458,-500.0,0.00015958,2]
[399980569,1766973038468,-500.0,0.00015958,2]
[399980571,1766973038482,-500.0,0.00015958,2]
[399980572,1766973038493,-37113.89884224,0.0001596,2]
[399981011,1766973046198,-12503.41767846,0.0001596,2]
[399981043,1766973577049,167.17884942,0.000287,120]
[399981047,1766973693556,166.16094641,0.0002876,120]
[399981095,1766974232158,-150.0,0.00013881,2]
[399981098,1766974232168,-312.228,0.00014494,2]
[399981127,1766974238243,-11.06474518,0.00014494,2]
[399981128,1766974238253,-369.47742306,0.00014494,2]
[399981129,1766974238263,-205.613545,0.00014764,2]
[399981130,1766974238272,-190.3529931,0.00014954,2]
[399981131,1766974238282,-187.119359,0.00015068,2]
[399981132,1766974238291,-300.0,0.00015256,2]
[399981133,1766974238301,-1200.0,0.00015256,2]
[399981134,1766974238310,-379.7109065,0.00015257,2]
[399981135,1766974238319,-683.4796317,0.00015257,2]
[399981136,1766974238329,-1215.0749008,0.00015257,2]
[399981137,1766974238338,-376.1809797,0.000153,2]
[399981138,1766974238347,-7558.87997926,0.000153,2]
[399981139,1766974238357,-751.4476768,0.00015441,2]
[399981140,1766974238366,-376.1809797,0.00015541,2]
[399981141,1766974238375,-500.0,0.00015622,2]
[399981142,1766974238384,-244.86078963,0.00015622,2]
[399981143,1766974238394,-376.1809797,0.00015641,2]
[399981144,1766974238404,-222.74937684,0.00015653,7]
[399981145,1766974238413,-2478.62329452,0.00015717,2]
[399981146,1766974238423,-2669.54574871,0.00015755,2]
[399981147,1766974238432,-211.37837205,0.00015756,2]
[399981148,1766974238441,-211.79146901,0.00015756,2]
[399981149,1766974238450,-500.0,0.00015756,2]
[399981150,1766974238459,-500.0,0.00015756,2]
[399981151,1766974238468,-500.0,0.00015756,2]
[399981152,1766974238478,-500.0,0.00015756,2]
[399981153,1766974238487,-500.0,0.00015756,2]
[399981154,1766974238497,-500.0,0.00015756,2]
[399981155,1766974238507,-500.0,0.00015756,2]
[399981156,1766974238517,-500.0,0.00015756,2]
[399981157,1766974238526,-500.0,0.00015756,2]
[399981158,1766974238537,-347.99630255,0.00015756,2]
[399981159,1766974238547,-500.0,0.00015756,2]
[399981160,1766974238556,-13260.93346766,0.00015757,2]
[399981161,1766974238568,-500.0,0.00015757,2]
[399981179,1766974240493,-2179.97612,0.00015757,2]
[399981590,1766974244678,-2517.96006472,0.00015757,2]
[399981719,1766974246372,-264.40334013,0.00015757,2]
[399981720,1766974246384,-501.96799976,0.00015757,2]
[399981721,1766974246425,-454.932072,0.00015757,2]
[399981722,1766974246437,-45448.02484264,0.00015757,2]
[399981745,1766974726024,161.86,0.000287,120]
[399981746,1766974813750,-200.0,0.00013632,2]
[399981747,1766974813771,-614.0,0.00013632,2]
[399981748,1766974947436,150.0,7.76e-05,2]
[399981749,1766974947894,150.0,8.466e-05,2]
[399981750,1766974948296,150.0,9.171e-05,2]
[399981751,1766975016145,160.74,0.000287,120]
[399981753,1766975076545,150.0,7.622e-05,2]
[399981754,1766975088296,888.0,0.00028767,120]
[399981775,1766975162679,222.0,0.00028767,120]
[399981780,1766975191387,255.0,0.00028767,120]
[399981791,1766975327353,-575.51416669,0.00013272,2]
[399981792,1766975332665,-300.0,0.00013272,2]
[399981793,1766975333276,150.0,7.633e-05,2]
[399981794,1766975333675,150.0,8.327e-05,2]
[399981795,1766975334680,-316.89528635,0.00013272,2]
[399981796,1766975337385,-233.64705175,0.00013272,2]
[399981797,1766975340789,-445.26019339,0.00013272,2]
[399981798,1766975343868,-166.48174116,0.00013272,2]
[399981799,1766975349748,-176.42180026,0.00013272,2]
[399981800,1766975351180,-192.34460688,0.00013272,2]
[399981801,1766975353341,-307.89522142,0.00013272,2]
[399981802,1766975359798,-416.60538873,0.00013272,2]
[399981803,1766975365867,-212.89528722,0.00013272,2]
[399981804,1766975367984,-300.0,0.00013272,2]
[399981805,1766975369979,-268.0,0.00013272,2]
[399981806,1766975373927,-288.76688686,0.00013272,2]
[399981807,1766975404313,200.0,0.00028643,120]
[399981808,1766975406219,200.0,0.00028643,120]
[399981809,1766975408200,394.83610381,0.00028643,120]
[399981838,1766975432328,-301.27236929,0.00013272,2]
[399981839,1766975432341,-300.0,0.00013272,2]
[399981840,1766975432351,-132.21983899,0.00013272,2]
[399981858,1766975438400,-167.78016101,0.00013272,2]
[399981860,1766975438410,-608.0,0.00013272,2]
[399981862,1766975438420,-1200.0,0.00013272,2]
[399981864,1766975438429,-150.0,0.00013272,2]
[399981866,1766975438439,-230.48285556,0.00013273,2]
[399981868,1766975438448,-500.0,0.00013273,2]
[399981870,1766975438462,-170.80847963,0.00013273,2]
[399981872,1766975438472,-507.91315682,0.00013273,2]
[399981874,1766975438482,-224.18693351,0.00013273,2]
[399981876,1766975438492,-500.34716265,0.00013273,2]
[399981878,1766975438502,-247.39107232,0.00013273,2]
[399981880,1766975438511,-536.43334732,0.00013273,2]
[399981883,1766975438521,-405.368034,0.00013699,2]
[399981885,1766975438530,-150.16404657,0.00013821,2]
[399981887,1766975438540,-420.0,0.00014551,2]
[399981888,1766975438549,-324.0,0.00014599,2]
[399981891,1766975438559,-530.86542314,0.00015,3]
[399981892,1766975438568,-177.0,0.00015272,2]
[399981894,1766975438577,-324.64871568,0.00015346,2]
[399981896,1766975438586,-259.60931661,0.00015346,2]
[399981898,1766975438596,-500.0,0.00015346,2]
[399981899,1766975438604,-154.67440385,0.00015346,2]
[399981900,1766975438614,-500.0,0.00015346,2]
[399981901,1766975438624,-369.20646636,0.00015346,2]
[399981902,1766975438633,-500.0,0.00015346,2]
[399981903,1766975438643,-500.0,0.00015346,2]
[399981904,1766975438652,-500.0,0.00015346,2]